bitfinex/quotes_BTCUSD_20250225
["timestamp","ask_amount","ask_price","bid_price","bid_amount"]
[1740469613723,0.28984606,89694.0,89672.0,0.08943444]
[1740469614442,0.15,89693.0,89672.0,0.08943444]
[1740469614646,0.00043111,89695.0,89690.0,0.08943444]
[1740469615276,0.00043111,89695.0,89694.0,0.05198233]
[1740469615701,0.16164,89752.0,89716.0,0.03823286]
[1740469615901,0.16164,89752.0,89726.0,0.03823286]
[1740469616046,0.28984606,89773.0,89726.0,0.03823286]
[1740469616247,0.28984606,89773.0,89706.0,0.08943444]
[1740469616248,0.28984606,89773.0,89724.0,0.03823286]
[1740469616448,0.28984606,89773.0,89726.0,0.03823286]
[1740469616663,0.28984606,89773.0,89729.0,0.03823286]
[1740469616988,0.09515313,89796.0,89736.0,0.08943444]
[1740469616989,0.28984606,89795.0,89736.0,0.08943444]
[1740469617186,0.00012942,89773.0,89740.0,0.03823286]
[1740469617509,0.00012942,89773.0,89753.0,0.03823286]
[1740469617715,0.28984606,89795.0,89753.0,0.03823286]
[1740469617866,0.0004313,89795.0,89761.0,0.03823286]
[1740469618099,0.0004313,89795.0,89755.0,0.03823286]
[1740469618418,0.28984606,89794.0,89739.0,0.0232]
[1740469618619,0.08265813,89790.0,89706.0,0.11263444]
[1740469618762,0.08265813,89790.0,89730.0,0.03823286]
[1740469618957,0.15,89788.0,89725.0,0.08943444]
[1740469619188,0.15,89788.0,89706.0,0.11263444]
[1740469619189,0.08943444,89781.0,89708.0,0.03823286]
[1740469619432,0.08943444,89772.0,89705.0,0.03823286]
[1740469619630,0.15,89779.0,89707.0,0.08943444]
[1740469619830,0.08265813,89790.0,89716.0,0.08943444]
[1740469620235,0.0008496,89773.0,89700.0,0.06139286]
[1740469620390,0.0008496,89773.0,89718.0,0.08943444]
[1740469620726,0.0008496,89773.0,89728.0,0.08943444]
[1740469620932,0.0008496,89773.0,89728.0,0.03823286]
[1740469621131,0.0008496,89773.0,89738.0,0.08943444]
[1740469621333,0.0008496,89773.0,89757.0,0.08943444]
[1740469621532,0.0008496,89773.0,89759.0,0.03823286]
[1740469621965,0.00030204,89773.0,89766.0,0.08943444]
[1740469622167,0.00030204,89773.0,89772.0,0.03823286]
[1740469622932,0.00030204,89773.0,89772.0,0.30470914]
[1740469623146,0.00030204,89773.0,89772.0,0.3390889]
[1740469623357,0.00030204,89773.0,89772.0,0.30470914]
[1740469623612,0.00030204,89773.0,89772.0,0.3390321]
[1740469623768,0.00030204,89773.0,89772.0,0.30079924]
[1740469623968,0.00030204,89773.0,89772.0,0.30470914]
[1740469624158,0.00030204,89773.0,89772.0,0.30475914]
[1740469624354,1.15e-06,89825.0,89810.0,0.03823286]
[1740469624554,0.00013051,89825.0,89810.0,0.03823286]
[1740469624759,0.00013051,89825.0,89818.0,0.03823286]
[1740469625199,0.00013051,89825.0,89821.0,0.03823286]
[1740469626177,0.08943444,89873.0,89808.0,0.03823286]
[1740469626377,0.08943444,89855.0,89792.0,0.03823286]
[1740469626641,0.15,89863.0,89799.0,0.03823286]
[1740469627023,0.15,89863.0,89800.0,0.03823286]
[1740469627222,0.15,89863.0,89807.0,0.03823286]
[1740469627422,0.15,89863.0,89775.0,0.08943444]
[1740469627423,1.42065124,89900.0,89813.0,0.03823286]
[1740469627740,1.42065124,89900.0,89821.0,0.03823286]
[1740469627982,1.42065124,89900.0,89833.0,0.03823286]
[1740469628198,1.42065124,89900.0,89839.0,0.03823286]
[1740469628390,1.42065124,89900.0,89847.0,0.03823286]
[1740469628588,1.42065124,89900.0,89844.0,0.08943444]
[1740469628589,1.42065124,89900.0,89848.0,0.03823286]
[1740469629044,0.28984606,89895.0,89857.0,0.03823286]
[1740469629239,0.2894503,89895.0,89865.0,0.03823286]
[1740469629431,0.28988117,89895.0,89865.0,0.03823286]
[1740469629629,0.28988117,89895.0,89866.0,0.03823286]
[1740469629988,0.28168565,89895.0,89870.0,0.03823286]
[1740469630193,0.28168565,89895.0,89847.0,5e-05]
[1740469630781,0.28168565,89895.0,89848.0,0.08943444]
[1740469631169,0.28168565,89895.0,89867.0,0.08943444]
[1740469631367,0.00043087,89895.0,89867.0,0.08943444]
[1740469631573,9.453e-05,89895.0,89867.0,0.08943444]
[1740469631785,1.42065124,89900.0,89895.0,0.00023229]
[1740469632769,1.42065124,89900.0,89857.0,0.08943444]
[1740469632954,0.15,89899.0,89857.0,0.00043087]
[1740469633474,0.15,89894.0,89857.0,0.00043087]
[1740469633680,0.15,89892.0,89857.0,0.00043087]
[1740469634866,0.15,89890.0,89857.0,0.00043087]
[1740469635199,0.06,89863.0,89857.0,0.00043087]
[1740469635375,0.08943444,89872.0,89857.0,0.00043087]
[1740469635376,0.21,89858.0,89857.0,0.00043087]
[1740469635583,0.27,89858.0,89857.0,0.00043087]
[1740469635726,0.15,89858.0,89857.0,0.00043087]
[1740469636077,0.15,89858.0,89857.0,0.00048087]
[1740469636437,0.15,89861.0,89857.0,0.00048087]
[1740469636636,0.15,89861.0,89805.0,0.08943444]
[1740469636637,0.15,89859.0,89805.0,0.03402993]
[1740469636839,0.06,89851.0,89805.0,0.00012931]
[1740469637086,0.06,89843.0,89795.0,0.08943444]
[1740469637242,0.21,89842.0,89793.0,0.08943444]
[1740469637441,0.15,89842.0,89793.0,0.08943444]
[1740469637650,0.05592747,89841.0,89804.0,0.08943444]
[1740469637900,0.0550649,89839.0,89804.0,0.08943444]
[1740469638244,0.01982022,89757.0,89751.0,0.02312]
[1740469638489,0.05569592,89835.0,89765.0,1e-08]
[1740469638799,0.15,89836.0,89748.0,0.08943444]
[1740469638800,0.20538038,89833.0,89748.0,0.08943444]
[1740469639025,0.14943444,89853.0,89748.0,0.08943444]
[1740469639026,0.05526061,89767.0,89748.0,0.08943444]
[1740469639167,0.05526061,89767.0,89739.0,0.00130766]
[1740469639356,0.05526061,89767.0,89713.0,0.02316]
[1740469639357,0.00334579,89768.0,89723.0,0.08943444]
[1740469639567,0.05526061,89767.0,89703.0,0.00012936]
[1740469640202,0.15,89702.0,89681.0,0.51905882]
[1740469640407,0.05573425,89701.0,89685.0,0.08956386]
[1740469640565,0.05598756,89701.0,89690.0,0.08943444]
[1740469640989,0.18049136,89703.0,89691.0,0.08943444]
[1740469641245,0.00334579,89768.0,89701.0,0.06]
[1740469641460,0.05596054,89767.0,89729.0,0.06]
[1740469641745,0.00334579,89768.0,89718.0,0.06]
[1740469641903,0.00334579,89768.0,89749.0,0.06]
[1740469642049,0.00334579,89768.0,89751.0,0.06]
[1740469642250,0.05596054,89767.0,89751.0,0.06]
[1740469642494,0.05596054,89767.0,89752.0,0.02736393]
[1740469642697,0.05608962,89767.0,89752.0,0.02736393]
[1740469643104,0.05608962,89767.0,89736.0,0.00428005]
[1740469643561,0.05608962,89767.0,89737.0,0.09501412]
[1740469643876,0.15,89765.0,89737.0,8e-08]
[1740469644076,0.05530678,89756.0,89692.0,0.01509926]
[1740469644208,0.06493423,89692.0,89687.0,0.20843444]
[1740469644419,0.05536867,89766.0,89752.0,0.0016942]
[1740469644618,0.00012908,89767.0,89691.0,0.119]
[1740469644619,0.05596054,89767.0,89691.0,0.119]
[1740469644819,0.05596054,89767.0,89687.0,0.08943444]
[1740469644820,0.00334579,89768.0,89715.0,0.119]
[1740469645122,0.05596054,89767.0,89717.0,0.119]
[1740469645322,0.00334579,89768.0,89719.0,0.119]
[1740469645517,0.00334579,89768.0,89714.0,0.08943444]
[1740469645518,0.05596054,89767.0,89721.0,0.119]
[1740469645718,0.05596054,89767.0,89723.0,0.119]
[1740469645945,0.00347487,89768.0,89724.0,0.15319626]
[1740469646109,0.00347487,89768.0,89730.0,0.08943444]
[1740469646308,0.00347487,89768.0,89731.0,0.03419626]
[1740469646507,0.05596054,89767.0,89732.0,0.15319626]
[1740469646828,0.08943444,89853.0,89734.0,0.20843444]
[1740469646952,0.00043156,89811.0,89744.0,0.119]
[1740469647161,0.00043156,89811.0,89746.0,0.119]
[1740469647373,0.00043156,89811.0,89734.0,0.08943444]
[1740469647374,0.08943444,89791.0,89748.0,0.119]
[1740469647578,0.08943444,89791.0,89617.0,0.1536212]
[1740469647579,0.05589615,89790.0,89749.0,0.89929626]
[1740469647776,0.05584436,89799.0,89750.0,0.03419626]
[1740469648039,0.05584436,89799.0,89751.0,0.03419626]
[1740469648270,0.08943444,89791.0,89752.0,0.03419626]
[1740469648484,0.08943444,89791.0,89753.0,0.03419626]
[1740469648614,0.08943444,89791.0,89754.0,0.03419626]
[1740469648615,0.05535473,89761.0,89754.0,0.03419626]
[1740469648825,0.05535473,89761.0,89755.0,0.03419626]
[1740469649023,0.05577699,89770.0,89724.0,0.5428]
[1740469649260,0.05500716,89781.0,89725.0,0.90070619]
[1740469649606,0.20500716,89781.0,89726.0,0.03440619]
[1740469649805,0.05546066,89768.0,89727.0,0.03440619]
[1740469650035,0.05546066,89768.0,89728.0,0.03440619]
[1740469650236,0.05546066,89768.0,89729.0,0.03440619]
[1740469650365,0.05546066,89768.0,89730.0,0.03440619]
[1740469650570,0.05584023,89799.0,89731.0,0.03440619]
[1740469650780,0.08943444,89791.0,89732.0,0.90070619]
[1740469650975,0.0552503,89790.0,89733.0,0.03440619]
[1740469651240,0.2052503,89790.0,89735.0,0.119]
[1740469651444,0.2052503,89790.0,89736.0,0.03440619]
[1740469651563,0.08943444,89782.0,89737.0,0.03440619]
[1740469651770,0.0556817,89779.0,89738.0,0.03440619]
[1740469651978,0.0556817,89779.0,89739.0,0.90070619]
[1740469652183,0.0556817,89779.0,89740.0,0.03440619]
[1740469652400,0.0556817,89779.0,89741.0,0.03440619]
[1740469652601,0.0556817,89779.0,89742.0,0.03440619]
[1740469652804,0.08943444,89769.0,89743.0,0.03440619]
[1740469653088,0.05552987,89778.0,89744.0,0.03440619]
[1740469653272,0.05552987,89778.0,89739.0,0.8663]
[1740469653273,0.05552987,89778.0,89745.0,0.03440619]
[1740469653464,0.05552987,89778.0,89746.0,0.03440619]
[1740469653672,0.05552987,89778.0,89747.0,0.03440619]
[1740469653846,0.05552987,89778.0,89748.0,0.03440619]
[1740469654025,0.05552987,89778.0,89749.0,0.03440619]
[1740469654230,0.15,89790.0,89750.0,0.03440619]
[1740469654438,0.05509046,89829.0,89761.0,0.08943444]
[1740469654637,0.05509046,89829.0,89770.0,0.08943444]
[1740469654884,0.05509046,89829.0,89771.0,0.90070619]
[1740469655095,0.08943444,89821.0,89772.0,0.57720619]
[1740469655239,0.08943444,89812.0,89773.0,0.57720619]
[1740469655436,0.05559846,89811.0,89774.0,0.03440619]
[1740469655640,0.20603002,89811.0,89775.0,0.57720619]
[1740469655844,0.20603002,89811.0,89776.0,0.57720619]
[1740469656089,0.00043156,89811.0,89777.0,0.57720619]
[1740469656287,0.00043156,89811.0,89778.0,0.03440619]
[1740469656288,0.05595396,89810.0,89778.0,0.03440619]
[1740469656599,0.08943444,89828.0,89779.0,0.03440619]
[1740469656752,0.05552013,89827.0,89780.0,0.03440619]
[1740469656984,0.05552013,89827.0,89781.0,0.03440619]
[1740469657186,0.00012938,89828.0,89782.0,0.12384063]
[1740469657384,0.00012938,89828.0,89783.0,0.92382619]
[1740469657608,0.05552013,89827.0,89784.0,0.03440619]
[1740469657768,0.05552013,89827.0,89785.0,0.03440619]
[1740469657969,0.05552013,89827.0,89786.0,0.03440619]
[1740469658180,0.05552013,89827.0,89783.0,0.88942]
[1740469658181,0.05552013,89827.0,89787.0,0.57720619]
[1740469658381,0.05552013,89827.0,89788.0,0.03440619]
[1740469658637,0.05552013,89827.0,89789.0,0.03440619]
[1740469658961,0.08943444,89842.0,89790.0,0.03440619]
[1740469659082,0.05520205,89857.0,89791.0,0.57720619]
[1740469659287,0.05520205,89857.0,89792.0,0.03440619]
[1740469659540,0.05520205,89857.0,89793.0,0.03440619]
[1740469659723,0.05520205,89857.0,89794.0,0.03440619]
[1740469659929,0.05559626,89851.0,89795.0,0.03440619]
[1740469660124,0.05559626,89851.0,89796.0,0.57720619]
[1740469660343,0.05559626,89851.0,89789.0,1e-07]
[1740469660522,0.08943444,89843.0,89767.0,0.00019857]
[1740469660893,0.05506119,89842.0,89771.0,0.08943444]
[1740469661114,0.05506119,89842.0,89772.0,0.0345274]
[1740469661343,0.2055009,89833.0,89773.0,0.0345274]
[1740469661537,0.055635,89832.0,89774.0,2e-08]
[1740469661747,0.205635,89832.0,89774.0,2e-08]
[1740469661943,0.205635,89832.0,89763.0,0.5428]
[1740469661944,0.28125478,89851.0,89787.0,0.08943444]
[1740469662173,0.00043122,89852.0,89797.0,0.08943444]
[1740469662327,0.08943441,89788.0,89778.0,0.08943444]
[1740469662490,0.05520205,89857.0,89779.0,0.57731481]
[1740469662708,0.05520205,89857.0,89780.0,0.57731481]
[1740469662924,0.05520205,89857.0,89806.0,1e-08]
[1740469663370,0.05541853,89853.0,89807.0,2e-08]
[1740469663563,0.05541853,89853.0,89799.0,0.1179]
[1740469664434,0.20541853,89853.0,89803.0,0.1179]
[1740469665077,0.05520205,89857.0,89807.0,0.1179]
[1740469665195,0.00127832,89858.0,89816.0,0.1179]
[1740469665400,0.05520205,89857.0,89816.0,0.1179]
[1740469665625,0.05520205,89857.0,89818.0,0.1179]
[1740469665831,0.05520205,89857.0,89806.0,0.08943444]
[1740469666030,0.05520205,89857.0,89651.0,0.5016992]
[1740469666031,0.05581587,89855.0,89808.0,0.1179]
[1740469666253,0.00127832,89858.0,89817.0,0.1179]
[1740469666254,0.05520205,89857.0,89817.0,0.1179]
[1740469666634,0.05520205,89857.0,89807.0,0.08943444]
[1740469667126,0.05520205,89857.0,89808.0,0.03449165]
[1740469667499,0.05520205,89857.0,89817.0,0.1179]
[1740469667712,0.05520205,89857.0,89816.0,0.08943444]
[1740469667839,0.05520205,89857.0,89826.0,1e-08]
[1740469668041,0.05520205,89857.0,89818.0,0.1179]
[1740469668496,0.20518919,89845.0,89779.0,0.09730903]
[1740469668663,0.20518919,89845.0,89787.0,0.08943444]
[1740469669004,0.05860912,89791.0,89788.0,0.03449186]
[1740469669332,0.05581136,89843.0,89789.0,0.03448379]
[1740469669540,0.05581136,89843.0,89787.0,3e-08]
[1740469669541,0.20505628,89836.0,89779.0,0.03448379]
[1740469669814,0.20505628,89836.0,89780.0,0.03448379]
[1740469670015,0.20505628,89836.0,89788.0,0.08943444]
[1740469670243,0.20577482,89834.0,89776.0,0.27914]
[1740469670374,0.20577482,89834.0,89778.0,0.20733444]
[1740469670578,0.20577482,89834.0,89780.0,0.1179]
[1740469670955,0.20577482,89834.0,89787.0,0.08943444]
[1740469671137,0.08943444,89830.0,89778.0,0.08943444]
[1740469671291,0.20525443,89829.0,89779.0,0.03449941]
[1740469671698,0.20525443,89829.0,89786.0,0.08943444]
[1740469671950,0.20525443,89829.0,89779.0,0.1179]
[1740469672151,0.20550446,89827.0,89780.0,0.1179]
[1740469672362,0.20550446,89827.0,89787.0,0.08943444]
[1740469672577,0.20550446,89827.0,89780.0,0.1179]
[1740469672779,0.20577582,89825.0,89780.0,0.1179]
[1740469672996,0.20577582,89825.0,89776.0,0.16124]
[1740469672997,0.05577582,89825.0,89776.0,0.27914]
[1740469673199,0.16123996,89762.0,89736.0,0.09638594]
[1740469673402,0.05520394,89809.0,89761.0,0.08943444]
[1740469673558,0.05520394,89809.0,89762.0,0.03453943]
[1740469673759,0.05520394,89809.0,89770.0,0.08943444]
[1740469674006,0.08943444,89826.0,89770.0,0.08943444]
[1740469674007,0.05588348,89824.0,89770.0,0.08943444]
[1740469674360,0.05526677,89823.0,89779.0,0.08943444]
[1740469674740,0.05526677,89823.0,89788.0,0.08943444]
[1740469674940,0.05526677,89823.0,89789.0,0.13187576]
[1740469675145,0.05505543,89857.0,89808.0,0.08943444]
[1740469675353,0.05503134,89846.0,89809.0,0.03461298]
[1740469675568,0.05503134,89846.0,89810.0,0.03461298]
[1740469675854,0.05503134,89846.0,89806.0,0.02312]
[1740469676284,0.05505543,89857.0,89807.0,0.03461609]
[1740469676494,0.0559139,89857.0,89808.0,0.09730903]
[1740469676696,0.05518177,89855.0,89809.0,0.03461609]
[1740469677311,0.05561669,89857.0,89810.0,0.09730903]
[1740469677514,0.05519921,89854.0,89811.0,0.03461609]
[1740469677717,0.05519921,89854.0,89807.0,0.03461609]
[1740469678012,0.05519921,89854.0,89808.0,0.03461609]
[1740469678221,0.05519921,89854.0,89807.0,0.03461609]
[1740469678436,0.05519921,89854.0,89808.0,0.03461609]
[1740469678614,0.20538851,89845.0,89807.0,0.03461609]
[1740469678994,0.20538851,89845.0,89790.0,0.09730903]
[1740469679197,0.20538851,89845.0,89784.0,0.02312]
[1740469679198,0.20538851,89845.0,89791.0,0.03464486]
[1740469679382,0.20538851,89845.0,89794.0,0.08943444]
[1740469679581,0.20538851,89845.0,89795.0,0.03464486]
[1740469679582,0.05538851,89845.0,89795.0,0.03464486]
[1740469679797,0.05502175,89854.0,89796.0,0.03464486]
[1740469680010,0.05502175,89854.0,89797.0,0.03464486]
[1740469680226,0.20502175,89854.0,89798.0,0.03464486]
[1740469680428,0.05525578,89857.0,89799.0,0.03464486]
[1740469680629,0.05575851,89855.0,89809.0,0.0016944]
[1740469680830,0.05525578,89857.0,89810.0,0.03464486]
[1740469681064,0.00097639,89858.0,89811.0,0.03464486]
[1740469681264,0.05525578,89857.0,89812.0,0.03464486]
[1740469681434,0.08943444,89856.0,89813.0,0.03464486]
[1740469681803,0.20575851,89855.0,89814.0,0.03464486]
[1740469681916,0.20575851,89855.0,89809.0,0.0016944]
[1740469681917,0.20575851,89855.0,89810.0,0.03464486]
[1740469682121,0.05547691,89808.0,89793.0,0.02312]
[1740469682338,0.05547691,89808.0,89794.0,0.03468091]
[1740469682544,0.05547691,89808.0,89795.0,0.03468091]
[1740469682895,0.05547691,89808.0,89796.0,0.02914996]
[1740469683104,0.05547691,89808.0,89797.0,0.08070001]
[1740469683239,0.05547691,89808.0,89798.0,0.03469055]
[1740469683439,0.05547691,89808.0,89799.0,0.0829]
[1740469683642,0.05532088,89808.0,89801.0,0.0829]
[1740469683846,0.05558651,89855.0,89803.0,0.0829]
[1740469684045,0.0555508,89855.0,89805.0,0.0829]
[1740469684362,0.0555508,89855.0,89804.0,0.03469055]
[1740469684363,0.08943444,89847.0,89807.0,0.0765]
[1740469684577,0.05599673,89846.0,89808.0,0.03469055]
[1740469684780,0.08943444,89838.0,89809.0,0.10999055]
[1740469684987,0.05596376,89796.0,89779.0,0.02312]
[1740469685215,0.05596376,89796.0,89780.0,0.03470542]
[1740469685412,0.05596376,89796.0,89781.0,0.03470542]
[1740469685571,0.05596376,89796.0,89779.0,0.02312]
[1740469685572,0.05596376,89796.0,89782.0,0.03470542]
[1740469685776,0.05596376,89796.0,89780.0,0.03470542]
[1740469685975,0.05596376,89796.0,89781.0,0.03470542]
[1740469686306,0.00043095,89796.0,89782.0,0.03470542]
[1740469686504,0.00043095,89796.0,89783.0,0.03470542]
[1740469686717,0.05586131,89795.0,89780.0,0.0347365]
[1740469686955,0.05586131,89795.0,89768.0,0.03473734]
[1740469687170,0.05586131,89795.0,89752.0,0.03473893]
[1740469687380,0.05586131,89795.0,89753.0,0.03473893]
[1740469687592,0.05586131,89795.0,89746.0,0.09730903]
[1740469687593,0.05586131,89795.0,89754.0,0.03473893]
[1740469687790,0.05550903,89781.0,89755.0,0.03473893]
[1740469687993,0.20536125,89772.0,89752.0,0.03473893]
[1740469688135,0.20536125,89772.0,89737.0,0.0468]
[1740469688136,0.05541988,89762.0,89737.0,0.0468]
[1740469688337,0.05541988,89762.0,89725.0,0.0828]
[1740469688338,0.05585036,89753.0,89725.0,0.0828]
[1740469688538,0.20585036,89753.0,89720.0,0.0468]
[1740469688741,0.05586915,89743.0,89717.0,0.0016944]
[1740469688948,0.20585036,89753.0,89717.0,0.0016944]
[1740469689552,0.20585036,89753.0,89731.0,0.00182458]
[1740469689803,0.05534061,89788.0,89734.0,0.0819]
[1740469689981,0.0468,89794.0,89735.0,0.0347263]
[1740469690174,3.0783,89800.0,89736.0,0.1166263]
[1740469690175,0.05586131,89795.0,89736.0,0.1166263]
[1740469690374,0.05586131,89795.0,89737.0,0.0347263]
[1740469690735,0.08943444,89767.0,89737.0,0.0347263]
[1740469690922,0.08943444,89757.0,89737.0,0.0347263]
[1740469691128,0.20500452,89756.0,89731.0,0.00182458]
[1740469691840,0.05500452,89756.0,89731.0,0.00182458]
[1740469692072,0.08943444,89745.0,89731.0,0.00182458]
[1740469692220,0.20530556,89744.0,89731.0,0.00182458]
[1740469692610,0.0008471,89858.0,89731.0,0.00182458]
[1740469692611,0.05576417,89754.0,89731.0,0.00182458]
[1740469692810,0.05542,89776.0,89731.0,0.00182458]
[1740469693069,0.05542,89776.0,89732.0,0.0763]
[1740469693494,0.08943444,89768.0,89732.0,0.0763]
[1740469693623,0.20500452,89756.0,89732.0,0.0763]
[1740469693827,0.20556869,89747.0,89731.0,0.00182458]
[1740469694627,0.05506526,89745.0,89731.0,0.00182458]
[1740469694835,0.20506526,89745.0,89719.0,0.0016944]
[1740469695040,0.20500893,89736.0,89719.0,0.00182348]
[1740469695501,0.20535767,89726.0,89688.0,0.0479942]
[1740469695707,0.20555952,89717.0,89688.0,0.0016942]
[1740469695939,0.07918837,89672.0,89661.0,0.0016942]
[1740469696093,0.0471,89725.0,89663.0,0.13212352]
[1740469696291,0.0471,89743.0,89664.0,0.13192495]
[1740469696594,0.0471,89743.0,89661.0,0.0016942]
[1740469696595,0.2054266,89723.0,89665.0,0.13212352]
[1740469696759,0.15,89723.0,89666.0,0.13192495]
[1740469696965,0.01749034,89724.0,89668.0,0.01454085]
[1740469697167,0.01749034,89724.0,89669.0,0.03461592]
[1740469697389,0.05593063,89722.0,89669.0,0.03461592]
[1740469697590,0.20589091,89712.0,89669.0,0.03461592]
[1740469697787,0.05540831,89703.0,89668.0,0.00043111]
[1740469698031,0.08943444,89723.0,89668.0,0.00043111]
[1740469698236,0.08943444,89723.0,89669.0,0.13181655]
[1740469698439,0.05555593,89713.0,89670.0,0.03450752]
[1740469698752,0.20555593,89713.0,89669.0,0.09730903]
[1740469698890,0.05541353,89704.0,89670.0,0.082]
[1740469699292,0.20541353,89704.0,89670.0,0.082]
[1740469699712,0.05541353,89704.0,89667.0,0.01842888]
[1740469699916,0.20525664,89695.0,89661.0,2e-08]
[1740469700112,0.05511672,89694.0,89661.0,2e-08]
[1740469700352,0.05540831,89703.0,89661.0,2e-08]
[1740469700554,0.05522511,89683.0,89661.0,2e-08]
[1740469701291,0.15043058,89704.0,89661.0,2e-08]
[1740469701527,0.05556586,89685.0,89661.0,2e-08]
[1740469701732,0.05525664,89695.0,89661.0,2e-08]
[1740469701950,0.00043058,89704.0,89661.0,2e-08]
[1740469702174,0.05511672,89694.0,89661.0,2e-08]
[1740469702355,0.20511672,89694.0,89661.0,2e-08]
[1740469702561,0.05556586,89685.0,89661.0,2e-08]
[1740469703005,0.08943444,89676.0,89661.0,2e-08]
[1740469703282,0.20530412,89665.0,89661.0,2e-08]
[1740469703731,0.20530412,89665.0,89620.0,0.9979144]
[1740469703911,0.05551279,89651.0,89620.0,0.9979144]
[1740469704110,0.08943444,89626.0,89620.0,0.9979144]
[1740469704652,0.05526947,89631.0,89620.0,0.9979144]
[1740469705078,0.0805,89632.0,89620.0,0.9979144]
[1740469705079,0.20535462,89643.0,89620.0,0.9979144]
[1740469705284,0.05561956,89649.0,89620.0,0.9979144]
[1740469705403,0.05547107,89650.0,89620.0,0.9979144]
[1740469705821,0.15,89665.0,89620.0,0.9979144]
[1740469706036,0.05547107,89650.0,89620.0,0.9979144]
[1740469706439,0.05548267,89648.0,89620.0,0.9979144]
[1740469706810,0.08943444,89649.0,89620.0,0.9979144]
[1740469706811,0.05505317,89641.0,89620.0,0.9979144]
[1740469707224,0.01751144,89643.0,89620.0,0.9979144]
[1740469707225,0.05507427,89642.0,89620.0,0.9979144]
[1740469708366,0.01751144,89643.0,89621.0,0.09730903]
[1740469708566,0.01751144,89643.0,89622.0,0.0406]
[1740469708761,0.05517373,89642.0,89623.0,0.10210903]
[1740469709164,0.01613387,89643.0,89623.0,0.09730903]
[1740469709728,0.05517373,89642.0,89623.0,0.09730903]
[1740469709925,0.08943444,89657.0,89623.0,0.09730903]
[1740469710121,0.08434528,89657.0,89624.0,0.01454085]
[1740469710318,0.08943444,89666.0,89626.0,0.01454085]
[1740469710515,0.08943444,89656.0,89626.0,0.01454085]
[1740469710686,0.05540917,89646.0,89626.0,0.01454085]
[1740469710890,0.05569283,89637.0,89625.0,0.0975076]
[1740469711454,0.05569283,89637.0,89624.0,0.00043005]
[1740469712841,0.05540917,89646.0,89624.0,0.00043005]
[1740469713333,0.0829,89658.0,89624.0,0.00043005]
[1740469713334,0.05596699,89640.0,89624.0,0.00043005]
[1740469713547,0.01751156,89641.0,89624.0,0.00043005]
[1740469713762,0.0466,89669.0,89624.0,0.00043005]
[1740469713763,0.05569563,89655.0,89624.0,0.09730903]
[1740469713973,0.0829,89682.0,89628.0,0.01454085]
[1740469714193,0.05546872,89665.0,89626.0,0.0406]
[1740469714395,0.05546872,89665.0,89626.0,0.1585]
[1740469714605,0.05546872,89665.0,89624.0,0.09730903]
[1740469714606,0.05567161,89656.0,89624.0,0.09730903]
[1740469714814,0.05552335,89647.0,89624.0,0.09730903]
[1740469715450,0.05567161,89656.0,89624.0,0.09730903]
[1740469715883,0.05552335,89647.0,89624.0,0.09730903]
[1740469716336,0.05567161,89656.0,89624.0,0.09730903]
[1740469716528,0.05567161,89656.0,89625.0,0.1179]
[1740469716730,0.08943444,89676.0,89627.0,0.1179]
[1740469716906,0.05548874,89671.0,89632.0,0.1179]
[1740469717125,0.08943444,89676.0,89634.0,0.13244085]
[1740469717381,0.0762,89700.0,89638.0,0.1179]
[1740469717531,0.0471,89702.0,89642.0,0.1179]
[1740469717732,0.05530775,89703.0,89646.0,0.1179]
[1740469718095,0.05530775,89703.0,89648.0,0.1179]
[1740469718264,0.05530775,89703.0,89650.0,0.13244085]
[1740469718476,0.05523747,89670.0,89651.0,0.1318034]
[1740469718710,0.08943444,89653.0,89652.0,0.0342958]
[1740469718963,0.08943444,89653.0,89651.0,0.00019857]
[1740469719193,0.08943444,89662.0,89651.0,0.00019857]
[1740469719435,0.05595801,89661.0,89651.0,0.00019857]
[1740469719655,0.15,89699.0,89651.0,0.00019857]
[1740469719656,0.05582739,89677.0,89652.0,0.09730903]
[1740469719874,0.00043031,89661.0,89653.0,0.13172595]
[1740469720100,0.00043031,89661.0,89654.0,0.04895777]
[1740469720345,0.13743444,89705.0,89654.0,0.04895777]
[1740469720346,0.08943444,89705.0,89654.0,0.04895777]
[1740469720576,0.05595249,89698.0,89656.0,0.01454085]
[1740469720801,0.05506162,89690.0,89657.0,0.03441692]
[1740469721039,0.08943444,89705.0,89654.0,0.00012971]
[1740469721040,0.05563289,89686.0,89658.0,0.03441692]
[1740469721275,0.05535699,89685.0,89659.0,0.03441692]
[1740469721501,0.08943444,89686.0,89660.0,0.03441692]
[1740469721502,0.08943444,89667.0,89660.0,0.03441692]
[1740469721730,0.08943444,89667.0,89655.0,0.03441692]
[1740469721934,0.08943444,89667.0,89656.0,0.03441692]
[1740469722224,0.08943444,89667.0,89657.0,0.03441692]
[1740469722473,0.13853444,89705.0,89659.0,0.01454085]
[1740469722658,0.05522709,89694.0,89661.0,0.01454085]
[1740469722868,0.08943444,89686.0,89662.0,0.03441692]
[1740469723072,0.08943444,89686.0,89663.0,0.04895777]
[1740469723280,0.07090972,89704.0,89664.0,0.13192452]
[1740469723482,0.015,89704.0,89687.0,0.01454085]
[1740469723689,0.015,89704.0,89689.0,0.01454085]
[1740469723889,0.05574328,89750.0,89691.0,0.01454085]
[1740469724139,0.05574328,89750.0,89693.0,0.01454085]
[1740469724343,0.05599085,89753.0,89694.0,0.03441692]
[1740469724515,0.16993444,89764.0,89696.0,0.01454085]
[1740469724738,0.08956359,89746.0,89698.0,0.01454085]
[1740469724938,0.05546225,89745.0,89700.0,0.01454085]
[1740469725156,0.08943444,89737.0,89701.0,0.03441692]
[1740469725362,0.08956359,89746.0,89702.0,0.04895777]
[1740469725499,0.08956359,89746.0,89704.0,0.01454085]
[1740469725698,0.08956359,89746.0,89706.0,0.01454085]
[1740469725899,0.08956359,89746.0,89707.0,0.03441692]
[1740469726101,0.08956359,89746.0,89708.0,0.04895777]
[1740469726299,0.08943444,89736.0,89709.0,0.03441692]
[1740469726508,0.08943444,89736.0,89710.0,0.13192452]
[1740469726707,0.08943444,89736.0,89711.0,0.03441692]
[1740469726708,0.08943444,89718.0,89711.0,0.03441692]
[1740469727272,0.08943444,89718.0,89710.0,0.00019857]
[1740469727404,0.07067135,89718.0,89704.0,0.09730903]
[1740469727619,0.07067135,89718.0,89705.0,0.13185246]
[1740469727840,0.07067135,89718.0,89705.0,0.09730903]
[1740469728082,0.07067135,89718.0,89706.0,0.03454485]
[1740469728289,0.08943444,89727.0,89707.0,0.09730903]
[1740469728532,0.14476979,89736.0,89708.0,0.03454485]
[1740469728733,0.08956357,89736.0,89709.0,0.0975076]
[1740469728952,0.00012913,89736.0,89710.0,0.03454485]
[1740469729489,0.00182693,89736.0,89710.0,0.03454485]
[1740469730068,0.05716228,89736.0,89710.0,0.03454485]
[1740469730488,0.05551698,89735.0,89710.0,0.03454485]
[1740469730603,0.00182693,89736.0,89710.0,0.03454485]
[1740469730809,0.00182693,89736.0,89717.0,0.09840827]